[Event "Titled Tuesday Blitz May 2 Early 2023"]
[White "Baches Garcia, Guillermo"]
[Black "Guseinov, Gadir"]
[WhiteFideId "2209764"]
[BlackFideId "13401378"]
[WhiteElo "2334"]
[BlackElo "2573"]
[Result "1-0"]
[Round "01"]
[TimeControl "180+2"]
[Date "2023.05.02"]
[WhiteClock "0:00:00"]
[BlackClock "0:00:00"]

1. e4 {[%clk 0:00:01]}  c5 {[%clk 0:00:01]} 2. Nf3 {[%clk 0:00:01]}  g6 {[%clk 0:00:01]} 3. h4 {[%clk 0:00:01]}  Nf6 {[%clk 0:00:01]} 4. e5 {[%clk 0:00:01]}  Ng4 {[%clk 0:00:01]} 5. d4 {[%clk 0:00:01]}  cxd4 {[%clk 0:00:01]} 6. Qxd4 {[%clk 0:00:01]}  h5 {[%clk 0:00:01]} 7. e6 {[%clk 0:00:01]}  f6 {[%clk 0:00:01]} 8. Bd3 {[%clk 0:00:01]}  Rg8 {[%clk 0:00:01]} 9. exd7+ {[%clk 0:00:01]}  Qxd7 {[%clk 0:00:01]} 10. Qc4 {[%clk 0:00:01]}  Qe6+ {[%clk 0:00:01]} 11. Kf1 {[%clk 0:00:01]}  Qxc4 {[%clk 0:00:01]} 12. Bxc4 {[%clk 0:00:01]}  e6 {[%clk 0:00:01]} 13. Nc3 {[%clk 0:00:01]}  Nc6 {[%clk 0:00:01]} 14. Bf4 {[%clk 0:00:01]}  Rg7 {[%clk 0:00:01]} 15. Re1 {[%clk 0:00:01]}  e5 {[%clk 0:00:01]} 16. Nd5 {[%clk 0:00:00]}  Bf5 {[%clk 0:00:01]} 17. Nxf6+ {[%clk 0:00:00]}  Nxf6 {[%clk 0:00:01]} 18. Nxe5 {[%clk 0:00:00]}  Re7 {[%clk 0:00:00]} 19. Bb5 {[%clk 0:00:00]}  Rc8 {[%clk 0:00:00]} 20. f3 {[%clk 0:00:00]}  Bg7 {[%clk 0:00:00]} 21. Kf2 {[%clk 0:00:00]}  Nd5 {[%clk 0:00:00]} 22. Bg3 {[%clk 0:00:00]}  a6 {[%clk 0:00:00]} 23. Nxc6 {[%clk 0:00:00]}  bxc6 {[%clk 0:00:00]} 24. Bxa6 {[%clk 0:00:00]}  Rd8 {[%clk 0:00:00]} 25. Rxe7+ {[%clk 0:00:00]}  Kxe7 {[%clk 0:00:00]} 26. Re1+ {[%clk 0:00:00]}  Kf7 {[%clk 0:00:00]} 27. c3 {[%clk 0:00:00]}  Bf8 {[%clk 0:00:00]} 28. Bb7 {[%clk 0:00:00]}  Bc5+ {[%clk 0:00:00]} 29. Ke2 {[%clk 0:00:00]}  Ne7 {[%clk 0:00:00]} 30. Rd1 {[%clk 0:00:00]}  Rxd1 {[%clk 0:00:00]} 31. Kxd1 {[%clk 0:00:00]}  Bd3 {[%clk 0:00:00]} 32. b4 {[%clk 0:00:00]}  Ba7 {[%clk 0:00:00]} 33. a4 {[%clk 0:00:00]}  Ke8 {[%clk 0:00:00]} 34. Bd6 {[%clk 0:00:00]}  Nd5 {[%clk 0:00:00]} 35. Bxc6+ {[%clk 0:00:00]}  Kd8 {[%clk 0:00:00]} 36. Bxd5 {[%clk 0:00:00]}  Bf1 {[%clk 0:00:00]} 37. g4 {[%clk 0:00:00]}  Kd7 {[%clk 0:00:00]} 38. Bc5 {[%clk 0:00:00]}  Bb8 {[%clk 0:00:00]} 39. gxh5 {[%clk 0:00:00]}  gxh5 {[%clk 0:00:00]} 40. Bf7 {[%clk 0:00:00]}  Kc6 {[%clk 0:00:00]} 41. Bxh5 {[%clk 0:00:00]}  Kd5 {[%clk 0:00:00]} 42. Bg4 {[%clk 0:00:00]}  Kc4 {[%clk 0:00:00]} 43. Bd4 {[%clk 0:00:00]}  Bf4 {[%clk 0:00:00]} 44. a5 {[%clk 0:00:00]}  Kd3 {[%clk 0:00:00]} 45. a6 {[%clk 0:00:00]}  Be2+ {[%clk 0:00:00]} 46. Ke1 {[%clk 0:00:00]}  Bg3+ {[%clk 0:00:00]} 47. Bf2 {[%clk 0:00:00]}  Be5 {[%clk 0:00:00]} 48. Bf5+ {[%clk 0:00:00]}  Kxc3 {[%clk 0:00:00]} 49. Kxe2 {[%clk 0:00:00]} 1-0


[Site "https://www.chess.com"]

[Event "Titled Tuesday Blitz May 2 Early 2023"]
[White "Djordjevic, Vuk"]
[Black "Xu, Daniel"]
[WhiteFideId "902098"]
[BlackFideId "2627345"]
[WhiteElo "2452"]
[BlackElo "1980"]
[Result "1-0"]
[Round "01"]
[TimeControl "180+2"]
[Date "2023.05.02"]
[WhiteClock "0:00:01"]
[BlackClock "0:00:00"]

1. d4 {[%clk 0:00:01]}  Nf6 {[%clk 0:00:01]} 2. Bg5 {[%clk 0:00:01]}  d5 {[%clk 0:00:01]} 3. Bxf6 {[%clk 0:00:01]}  exf6 {[%clk 0:00:01]} 4. e3 {[%clk 0:00:01]}  Bd6 {[%clk 0:00:01]} 5. c4 {[%clk 0:00:01]}  dxc4 {[%clk 0:00:01]} 6. Bxc4 {[%clk 0:00:01]}  O-O {[%clk 0:00:01]} 7. Nc3 {[%clk 0:00:01]}  c6 {[%clk 0:00:01]} 8. Nf3 {[%clk 0:00:01]}  f5 {[%clk 0:00:01]} 9. O-O {[%clk 0:00:01]}  Be6 {[%clk 0:00:01]} 10. Bxe6 {[%clk 0:00:01]}  fxe6 {[%clk 0:00:01]} 11. Qb3 {[%clk 0:00:01]}  Qe7 {[%clk 0:00:01]} 12. e4 {[%clk 0:00:01]}  Na6 {[%clk 0:00:00]} 13. exf5 {[%clk 0:00:01]}  Rxf5 {[%clk 0:00:00]} 14. Rfe1 {[%clk 0:00:01]}  Nc7 {[%clk 0:00:00]} 15. Qxb7 {[%clk 0:00:01]}  Rxf3 {[%clk 0:00:00]} 16. gxf3 {[%clk 0:00:01]}  Qh4 {[%clk 0:00:00]} 17. Qxc6 {[%clk 0:00:01]}  Qxh2+ {[%clk 0:00:00]} 18. Kf1 {[%clk 0:00:01]}  Rf8 {[%clk 0:00:00]} 19. Ke2 {[%clk 0:00:01]}  Bg3 {[%clk 0:00:00]} 20. Ne4 {[%clk 0:00:01]}  Bf4 {[%clk 0:00:00]} 21. Rh1 {[%clk 0:00:01]}  Qg2 {[%clk 0:00:00]} 22. Rag1 {[%clk 0:00:01]}  Qxg1 {[%clk 0:00:00]} 23. Rxg1 {[%clk 0:00:01]} 1-0


[Site "https://www.chess.com"]

[Event "Titled Tuesday Blitz May 2 Early 2023"]
[White "Foerster-Yialamas, Lucas"]
[Black "Siva Mahadevan"]
[WhiteFideId "30901774"]
[BlackFideId "25043153"]
[WhiteElo "2067"]
[BlackElo "2249"]
[Result "0-1"]
[Round "01"]
[TimeControl "180+2"]
[Date "2023.05.02"]
[WhiteClock "0:00:01"]
[BlackClock "0:00:01"]

1. e4 {[%clk 0:00:01]}  c5 {[%clk 0:00:01]} 2. Nf3 {[%clk 0:00:01]}  Nc6 {[%clk 0:00:01]} 3. d4 {[%clk 0:00:01]}  cxd4 {[%clk 0:00:01]} 4. Nxd4 {[%clk 0:00:01]}  Nf6 {[%clk 0:00:01]} 5. Nc3 {[%clk 0:00:01]}  d6 {[%clk 0:00:01]} 6. Bg5 {[%clk 0:00:01]}  e6 {[%clk 0:00:01]} 7. Qd2 {[%clk 0:00:01]}  a6 {[%clk 0:00:01]} 8. O-O-O {[%clk 0:00:01]}  Bd7 {[%clk 0:00:01]} 9. h4 {[%clk 0:00:01]}  b5 {[%clk 0:00:01]} 10. g4 {[%clk 0:00:01]}  Ne5 {[%clk 0:00:01]} 11. Bxf6 {[%clk 0:00:01]}  gxf6 {[%clk 0:00:01]} 12. Rg1 {[%clk 0:00:01]}  h5 {[%clk 0:00:01]} 13. gxh5 {[%clk 0:00:01]}  Rxh5 {[%clk 0:00:01]} 14. Rg8 {[%clk 0:00:01]}  Qb6 {[%clk 0:00:01]} 15. f4 {[%clk 0:00:01]}  Ng6 {[%clk 0:00:01]} 16. f5 {[%clk 0:00:01]}  Ne5 {[%clk 0:00:01]} 17. fxe6 {[%clk 0:00:01]}  fxe6 {[%clk 0:00:01]} 18. Ndxb5 {[%clk 0:00:01]}  axb5 {[%clk 0:00:01]} 19. Bxb5 {[%clk 0:00:01]}  Bxb5 {[%clk 0:00:01]} 20. Nxb5 {[%clk 0:00:01]}  Qxb5 {[%clk 0:00:01]} 21. Qxd6 {[%clk 0:00:01]}  Kf7 {[%clk 0:00:01]} 22. Rdg1 {[%clk 0:00:01]}  Bh6+ {[%clk 0:00:01]} 23. Kb1 {[%clk 0:00:01]}  Rxg8 {[%clk 0:00:01]} 24. Rxg8 {[%clk 0:00:01]}  Qf1+ {[%clk 0:00:01]} 0-1


[Site "https://www.chess.com"]

[Event "Titled Tuesday Blitz May 2 Early 2023"]
[White "Acor, Corey"]
[Black "Kukula, Pawel"]
[WhiteFideId "2024861"]
[BlackFideId "1115081"]
[WhiteElo "2341"]
[BlackElo "2012"]
[Result "1-0"]
[Round "01"]
[TimeControl "180+2"]
[Date "2023.05.02"]
[WhiteClock "0:00:00"]
[BlackClock "0:00:00"]

1. e4 {[%clk 0:00:01]}  c5 {[%clk 0:00:01]} 2. Nc3 {[%clk 0:00:01]}  Nc6 {[%clk 0:00:01]} 3. g3 {[%clk 0:00:01]}  g6 {[%clk 0:00:01]} 4. Bg2 {[%clk 0:00:01]}  Bg7 {[%clk 0:00:01]} 5. d3 {[%clk 0:00:01]}  d6 {[%clk 0:00:01]} 6. Be3 {[%clk 0:00:01]}  e5 {[%clk 0:00:01]} 7. f4 {[%clk 0:00:01]}  Nge7 {[%clk 0:00:01]} 8. Nf3 {[%clk 0:00:01]}  O-O {[%clk 0:00:01]} 9. fxe5 {[%clk 0:00:01]}  Nxe5 {[%clk 0:00:01]} 10. Nxe5 {[%clk 0:00:01]}  Bxe5 {[%clk 0:00:01]} 11. O-O {[%clk 0:00:01]}  f5 {[%clk 0:00:01]} 12. Bg5 {[%clk 0:00:01]}  Be6 {[%clk 0:00:01]} 13. Qd2 {[%clk 0:00:01]}  Qd7 {[%clk 0:00:01]} 14. Rae1 {[%clk 0:00:01]}  Rae8 {[%clk 0:00:01]} 15. Bh6 {[%clk 0:00:01]}  Rf7 {[%clk 0:00:01]} 16. Kh1 {[%clk 0:00:01]}  Kh8 {[%clk 0:00:01]} 17. a3 {[%clk 0:00:01]}  a6 {[%clk 0:00:01]} 18. Bf4 {[%clk 0:00:01]}  Bg7 {[%clk 0:00:01]} 19. h3 {[%clk 0:00:00]}  fxe4 {[%clk 0:00:01]} 20. Nxe4 {[%clk 0:00:00]}  Bd5 {[%clk 0:00:01]} 21. Kh2 {[%clk 0:00:00]}  Bxe4 {[%clk 0:00:01]} 22. dxe4 {[%clk 0:00:00]}  Nc6 {[%clk 0:00:00]} 23. Qxd6 {[%clk 0:00:00]}  Bxb2 {[%clk 0:00:00]} 24. Qxc5 {[%clk 0:00:00]}  Bd4 {[%clk 0:00:00]} 25. Qd5 {[%clk 0:00:00]}  Qc8 {[%clk 0:00:00]} 26. Qxf7 {[%clk 0:00:00]} 1-0


[Site "https://www.chess.com"]

[Event "Titled Tuesday Blitz May 2 Early 2023"]
[White "Ljukin, Sergei"]
[Black "Maksimovic, Bojan"]
[WhiteFideId "14102200"]
[BlackFideId "14408120"]
[WhiteElo "2312"]
[BlackElo "2468"]
[Result "0-1"]
[Round "01"]
[TimeControl "180+2"]
[Date "2023.05.02"]
[WhiteClock "0:00:00"]
[BlackClock "0:00:00"]

1. e4 {[%clk 0:00:01]}  g6 {[%clk 0:00:01]} 2. d4 {[%clk 0:00:01]}  Nf6 {[%clk 0:00:01]} 3. Nc3 {[%clk 0:00:01]}  d5 {[%clk 0:00:01]} 4. e5 {[%clk 0:00:01]}  Ne4 {[%clk 0:00:01]} 5. Nxe4 {[%clk 0:00:01]}  dxe4 {[%clk 0:00:01]} 6. c3 {[%clk 0:00:01]}  c5 {[%clk 0:00:01]} 7. Ne2 {[%clk 0:00:01]}  Nc6 {[%clk 0:00:01]} 8. Be3 {[%clk 0:00:01]}  Bg7 {[%clk 0:00:01]} 9. Ng3 {[%clk 0:00:01]}  cxd4 {[%clk 0:00:01]} 10. cxd4 {[%clk 0:00:01]}  Qa5+ {[%clk 0:00:01]} 11. Qd2 {[%clk 0:00:01]}  Qxd2+ {[%clk 0:00:01]} 12. Kxd2 {[%clk 0:00:01]}  O-O {[%clk 0:00:01]} 13. Bb5 {[%clk 0:00:01]}  Rd8 {[%clk 0:00:01]} 14. Bxc6 {[%clk 0:00:01]}  bxc6 {[%clk 0:00:01]} 15. Ke2 {[%clk 0:00:01]}  Bg4+ {[%clk 0:00:01]} 16. f3 {[%clk 0:00:01]}  exf3+ {[%clk 0:00:01]} 17. gxf3 {[%clk 0:00:01]}  Be6 {[%clk 0:00:01]} 18. Rhc1 {[%clk 0:00:01]}  Bd5 {[%clk 0:00:01]} 19. Rc5 {[%clk 0:00:01]}  f6 {[%clk 0:00:01]} 20. f4 {[%clk 0:00:01]}  fxe5 {[%clk 0:00:01]} 21. dxe5 {[%clk 0:00:01]}  e6 {[%clk 0:00:01]} 22. Rc3 {[%clk 0:00:01]}  Rf8 {[%clk 0:00:01]} 23. Rf1 {[%clk 0:00:01]}  Rf7 {[%clk 0:00:01]} 24. Bc5 {[%clk 0:00:00]}  Bh6 {[%clk 0:00:01]} 25. Ke3 {[%clk 0:00:00]}  Rb8 {[%clk 0:00:00]} 26. b3 {[%clk 0:00:00]}  Bg7 {[%clk 0:00:00]} 27. Ne4 {[%clk 0:00:00]}  Bxe5 {[%clk 0:00:00]} 28. Rc2 {[%clk 0:00:00]}  Bg7 {[%clk 0:00:00]} 29. Rd1 {[%clk 0:00:00]}  e5 {[%clk 0:00:00]} 30. fxe5 {[%clk 0:00:00]}  Bxe5 {[%clk 0:00:00]} 31. Bd6 {[%clk 0:00:00]}  Bxd6 {[%clk 0:00:00]} 32. Nxd6 {[%clk 0:00:00]}  Rf6 {[%clk 0:00:00]} 33. Nc4 {[%clk 0:00:00]}  Rbf8 {[%clk 0:00:00]} 34. Kd4 {[%clk 0:00:00]}  Rf2 {[%clk 0:00:00]} 35. Rxf2 {[%clk 0:00:00]}  Rxf2 {[%clk 0:00:00]} 36. Rd2 {[%clk 0:00:00]}  Rf6 {[%clk 0:00:00]} 37. Kc5 {[%clk 0:00:00]}  Kg7 {[%clk 0:00:00]} 38. Ne5 {[%clk 0:00:00]}  g5 {[%clk 0:00:00]} 39. Rd3 {[%clk 0:00:00]}  h5 {[%clk 0:00:00]} 40. a4 {[%clk 0:00:00]}  g4 {[%clk 0:00:00]} 41. b4 {[%clk 0:00:00]}  Bf3 {[%clk 0:00:00]} 42. Rd7+ {[%clk 0:00:00]}  Kh6 {[%clk 0:00:00]} 43. Rxa7 {[%clk 0:00:00]}  h4 {[%clk 0:00:00]} 44. Rf7 {[%clk 0:00:00]}  Rxf7 {[%clk 0:00:00]} 45. Nxf7+ {[%clk 0:00:00]}  Kg6 {[%clk 0:00:00]} 46. Ne5+ {[%clk 0:00:00]}  Kf5 {[%clk 0:00:00]} 0-1


[Site "https://www.chess.com"]

[Event "Titled Tuesday Blitz May 2 Early 2023"]
[White "Livaic, Leon"]
[Black "Seletsky, Grigory"]
[WhiteFideId "14531534"]
[BlackFideId "14112191"]
[WhiteElo "2509"]
[BlackElo "2490"]
[Result "1-0"]
[Round "01"]
[TimeControl "180+2"]
[Date "2023.05.02"]
[WhiteClock "0:00:01"]
[BlackClock "0:00:00"]

1. d4 {[%clk 0:00:01]}  c6 {[%clk 0:00:01]} 2. c4 {[%clk 0:00:01]}  d5 {[%clk 0:00:01]} 3. cxd5 {[%clk 0:00:01]}  cxd5 {[%clk 0:00:01]} 4. Bf4 {[%clk 0:00:01]}  Nc6 {[%clk 0:00:01]} 5. e3 {[%clk 0:00:01]}  Nf6 {[%clk 0:00:01]} 6. Nc3 {[%clk 0:00:01]}  a6 {[%clk 0:00:01]} 7. Be2 {[%clk 0:00:01]}  Bf5 {[%clk 0:00:01]} 8. Nf3 {[%clk 0:00:01]}  e6 {[%clk 0:00:01]} 9. Qb3 {[%clk 0:00:01]}  Qd7 {[%clk 0:00:01]} 10. O-O {[%clk 0:00:01]}  Be7 {[%clk 0:00:01]} 11. Na4 {[%clk 0:00:01]}  Na5 {[%clk 0:00:01]} 12. Qd1 {[%clk 0:00:01]}  Qd8 {[%clk 0:00:01]} 13. Rc1 {[%clk 0:00:01]}  Nc6 {[%clk 0:00:01]} 14. Qb3 {[%clk 0:00:01]}  Ra7 {[%clk 0:00:01]} 15. Ne5 {[%clk 0:00:01]}  Na5 {[%clk 0:00:01]} 16. Qb6 {[%clk 0:00:01]}  Qxb6 {[%clk 0:00:01]} 17. Nxb6 {[%clk 0:00:01]}  Nc6 {[%clk 0:00:01]} 18. Nxc6 {[%clk 0:00:01]}  bxc6 {[%clk 0:00:01]} 19. Rxc6 {[%clk 0:00:01]}  O-O {[%clk 0:00:00]} 20. Nc8 {[%clk 0:00:01]}  Rd7 {[%clk 0:00:00]} 21. Nxe7+ {[%clk 0:00:01]}  Rxe7 {[%clk 0:00:00]} 22. Bd6 {[%clk 0:00:01]}  Rd7 {[%clk 0:00:00]} 23. Bxf8 {[%clk 0:00:01]}  Kxf8 {[%clk 0:00:00]} 24. Rfc1 {[%clk 0:00:01]}  Ne4 {[%clk 0:00:00]} 25. Rc8+ {[%clk 0:00:01]}  Ke7 {[%clk 0:00:00]} 26. R1c7 {[%clk 0:00:01]}  a5 {[%clk 0:00:00]} 27. Rxd7+ {[%clk 0:00:01]}  Kxd7 {[%clk 0:00:00]} 28. Ra8 {[%clk 0:00:01]} 1-0


[Site "https://www.chess.com"]

[Event "Titled Tuesday Blitz May 2 Early 2023"]
[White "Ramirez Vido, Robert Yorisan"]
[Black "Kravtsiv, Martyn"]
[WhiteFideId "3513823"]
[BlackFideId "14113147"]
[WhiteElo "2015"]
[BlackElo "2695"]
[Result "0-1"]
[Round "01"]
[TimeControl "180+2"]
[Date "2023.05.02"]
[WhiteClock "0:00:00"]
[BlackClock "0:00:01"]

1. f4 {[%clk 0:00:01]}  g6 {[%clk 0:00:01]} 2. Nf3 {[%clk 0:00:01]}  Bg7 {[%clk 0:00:01]} 3. g3 {[%clk 0:00:01]}  b6 {[%clk 0:00:01]} 4. d3 {[%clk 0:00:01]}  Bb7 {[%clk 0:00:01]} 5. Bg2 {[%clk 0:00:01]}  d6 {[%clk 0:00:01]} 6. e4 {[%clk 0:00:01]}  Nd7 {[%clk 0:00:01]} 7. O-O {[%clk 0:00:01]}  e6 {[%clk 0:00:01]} 8. c3 {[%clk 0:00:01]}  Ne7 {[%clk 0:00:01]} 9. Re1 {[%clk 0:00:01]}  O-O {[%clk 0:00:01]} 10. Be3 {[%clk 0:00:01]}  c5 {[%clk 0:00:01]} 11. Bf2 {[%clk 0:00:01]}  Qc7 {[%clk 0:00:01]} 12. d4 {[%clk 0:00:01]}  Rac8 {[%clk 0:00:01]} 13. Nbd2 {[%clk 0:00:01]}  cxd4 {[%clk 0:00:01]} 14. cxd4 {[%clk 0:00:01]}  Qc2 {[%clk 0:00:01]} 15. Qxc2 {[%clk 0:00:01]}  Rxc2 {[%clk 0:00:01]} 16. Rec1 {[%clk 0:00:01]}  Rfc8 {[%clk 0:00:01]} 17. Rxc2 {[%clk 0:00:01]}  Rxc2 {[%clk 0:00:01]} 18. b3 {[%clk 0:00:00]}  Nf6 {[%clk 0:00:01]} 19. e5 {[%clk 0:00:00]}  dxe5 {[%clk 0:00:01]} 20. dxe5 {[%clk 0:00:00]}  Ng4 {[%clk 0:00:01]} 21. h3 {[%clk 0:00:00]}  Nxf2 {[%clk 0:00:01]} 22. Kxf2 {[%clk 0:00:00]}  Bxf3 {[%clk 0:00:01]} 23. Bxf3 {[%clk 0:00:00]}  Rxd2+ {[%clk 0:00:01]} 24. Ke3 {[%clk 0:00:00]}  Rh2 {[%clk 0:00:01]} 25. Rc1 {[%clk 0:00:00]}  Rxh3 {[%clk 0:00:01]} 26. Kf2 {[%clk 0:00:00]}  Nf5 {[%clk 0:00:01]} 27. Kg2 {[%clk 0:00:00]}  Rxg3+ {[%clk 0:00:01]} 0-1


[Site "https://www.chess.com"]

[Event "Titled Tuesday Blitz May 2 Early 2023"]
[White "Sai Han Thiha"]
[Black "Xu, Yi"]
[WhiteFideId "13012290"]
[BlackFideId "8605564"]
[WhiteElo "1954"]
[BlackElo "2471"]
[Result "0-1"]
[Round "01"]
[TimeControl "180+2"]
[Date "2023.05.02"]
[WhiteClock "0:00:00"]
[BlackClock "0:00:00"]

1. d4 {[%clk 0:00:01]}  Nf6 {[%clk 0:00:01]} 2. c4 {[%clk 0:00:01]}  g6 {[%clk 0:00:01]} 3. Nc3 {[%clk 0:00:01]}  Bg7 {[%clk 0:00:01]} 4. e4 {[%clk 0:00:01]}  d6 {[%clk 0:00:01]} 5. Nf3 {[%clk 0:00:01]}  O-O {[%clk 0:00:01]} 6. Be2 {[%clk 0:00:01]}  e5 {[%clk 0:00:01]} 7. Be3 {[%clk 0:00:01]}  Ng4 {[%clk 0:00:01]} 8. Bg5 {[%clk 0:00:01]}  f6 {[%clk 0:00:01]} 9. Bc1 {[%clk 0:00:01]}  Nc6 {[%clk 0:00:01]} 10. O-O {[%clk 0:00:01]}  Nh6 {[%clk 0:00:01]} 11. Be3 {[%clk 0:00:01]}  Ng4 {[%clk 0:00:01]} 12. Bc1 {[%clk 0:00:01]}  Nh6 {[%clk 0:00:01]} 13. Be3 {[%clk 0:00:01]}  Bg4 {[%clk 0:00:01]} 14. c5 {[%clk 0:00:01]}  Bxf3 {[%clk 0:00:01]} 15. Bxf3 {[%clk 0:00:01]}  exd4 {[%clk 0:00:01]} 16. Bxd4 {[%clk 0:00:01]}  Nxd4 {[%clk 0:00:01]} 17. Qxd4 {[%clk 0:00:01]}  dxc5 {[%clk 0:00:01]} 18. Qxc5 {[%clk 0:00:01]}  c6 {[%clk 0:00:01]} 19. Rad1 {[%clk 0:00:01]}  Qc8 {[%clk 0:00:01]} 20. h3 {[%clk 0:00:01]}  Re8 {[%clk 0:00:01]} 21. Rd2 {[%clk 0:00:00]}  Bf8 {[%clk 0:00:01]} 22. Qc4+ {[%clk 0:00:00]}  Qe6 {[%clk 0:00:01]} 23. Qxe6+ {[%clk 0:00:00]}  Rxe6 {[%clk 0:00:01]} 24. Rd7 {[%clk 0:00:00]}  Re7 {[%clk 0:00:01]} 25. Rxe7 {[%clk 0:00:00]}  Bxe7 {[%clk 0:00:01]} 26. Rd1 {[%clk 0:00:00]}  Rd8 {[%clk 0:00:01]} 27. Rxd8+ {[%clk 0:00:00]}  Bxd8 {[%clk 0:00:01]} 28. Be2 {[%clk 0:00:00]}  Nf7 {[%clk 0:00:01]} 29. f4 {[%clk 0:00:00]}  Kf8 {[%clk 0:00:01]} 30. Kf2 {[%clk 0:00:00]}  Bb6+ {[%clk 0:00:01]} 31. Kf3 {[%clk 0:00:00]}  Bd4 {[%clk 0:00:01]} 32. Bd3 {[%clk 0:00:00]}  Ke7 {[%clk 0:00:01]} 33. Nd1 {[%clk 0:00:00]}  Nd6 {[%clk 0:00:01]} 34. b3 {[%clk 0:00:00]}  b5 {[%clk 0:00:00]} 35. Ne3 {[%clk 0:00:00]}  a5 {[%clk 0:00:00]} 36. Nc2 {[%clk 0:00:00]}  Bc5 {[%clk 0:00:00]} 37. Ne3 {[%clk 0:00:00]}  Nb7 {[%clk 0:00:00]} 38. e5 {[%clk 0:00:00]}  fxe5 {[%clk 0:00:00]} 39. fxe5 {[%clk 0:00:00]}  Bd4 {[%clk 0:00:00]} 40. Ke4 {[%clk 0:00:00]}  Bb2 {[%clk 0:00:00]} 41. Ng4 {[%clk 0:00:00]}  Nc5+ {[%clk 0:00:00]} 42. Ke3 {[%clk 0:00:00]}  h5 {[%clk 0:00:00]} 43. Nf2 {[%clk 0:00:00]}  Bxe5 {[%clk 0:00:00]} 44. Bxg6 {[%clk 0:00:00]}  h4 {[%clk 0:00:00]} 45. Nd3 {[%clk 0:00:00]}  Nd7 {[%clk 0:00:00]} 46. Be4 {[%clk 0:00:00]}  Kd6 {[%clk 0:00:00]} 47. Bf5 {[%clk 0:00:00]}  Bg3 {[%clk 0:00:00]} 48. Bxd7 {[%clk 0:00:00]}  Kxd7 {[%clk 0:00:00]} 49. a4 {[%clk 0:00:00]}  Kd6 {[%clk 0:00:00]} 50. Kd4 {[%clk 0:00:00]}  c5+ {[%clk 0:00:00]} 51. Kc3 {[%clk 0:00:00]}  bxa4 {[%clk 0:00:00]} 52. Kc4 {[%clk 0:00:00]}  axb3 {[%clk 0:00:00]} 53. Kxb3 {[%clk 0:00:00]}  Kd5 {[%clk 0:00:00]} 54. Kc3 {[%clk 0:00:00]}  a4 {[%clk 0:00:00]} 55. Nc1 {[%clk 0:00:00]}  Be5+ {[%clk 0:00:00]} 56. Kd3 {[%clk 0:00:00]}  c4+ {[%clk 0:00:00]} 57. Ke3 {[%clk 0:00:00]}  a3 {[%clk 0:00:00]} 58. Na2 {[%clk 0:00:00]}  Bb2 {[%clk 0:00:00]} 59. Nb4+ {[%clk 0:00:00]}  Ke5 {[%clk 0:00:00]} 60. Na2 {[%clk 0:00:00]}  c3 {[%clk 0:00:00]} 61. Kd3 {[%clk 0:00:00]}  Kf4 {[%clk 0:00:00]} 62. Nb4 {[%clk 0:00:00]}  Kg3 {[%clk 0:00:00]} 63. Kc2 {[%clk 0:00:00]}  Kxg2 {[%clk 0:00:00]} 64. Kb1 {[%clk 0:00:00]}  Kxh3 {[%clk 0:00:00]} 65. Nd3 {[%clk 0:00:00]}  Kg2 {[%clk 0:00:00]} 66. Nf4+ {[%clk 0:00:00]}  Kg3 {[%clk 0:00:00]} 67. Ne2+ {[%clk 0:00:00]}  Kf3 {[%clk 0:00:00]} 68. Ng1+ {[%clk 0:00:00]}  Kg2 {[%clk 0:00:00]} 69. Ne2 {[%clk 0:00:00]}  h3 {[%clk 0:00:00]} 70. Nf4+ {[%clk 0:00:00]}  Kg3 {[%clk 0:00:00]} 71. Nxh3 {[%clk 0:00:00]}  Kxh3 {[%clk 0:00:00]} 72. Kc2 {[%clk 0:00:00]}  a2 {[%clk 0:00:00]} 0-1


[Site "https://www.chess.com"]

[Event "Titled Tuesday Blitz May 2 Early 2023"]
[White "Bochnicka, Vladimir"]
[Black "Pakleza, Zbigniew"]
[WhiteFideId "14943450"]
[BlackFideId "1119290"]
[WhiteElo "2094"]
[BlackElo "2410"]
[Result "1-0"]
[Round "01"]
[TimeControl "180+2"]
[Date "2023.05.02"]
[WhiteClock "0:00:00"]
[BlackClock "0:00:00"]

1. e4 {[%clk 0:00:01]}  d6 {[%clk 0:00:01]} 2. d4 {[%clk 0:00:01]}  Nf6 {[%clk 0:00:01]} 3. Nc3 {[%clk 0:00:01]}  c6 {[%clk 0:00:01]} 4. h3 {[%clk 0:00:01]}  b5 {[%clk 0:00:01]} 5. a3 {[%clk 0:00:01]}  e5 {[%clk 0:00:01]} 6. Be3 {[%clk 0:00:01]}  Nbd7 {[%clk 0:00:01]} 7. Nge2 {[%clk 0:00:01]}  Bb7 {[%clk 0:00:01]} 8. g4 {[%clk 0:00:01]}  g6 {[%clk 0:00:01]} 9. Bg2 {[%clk 0:00:01]}  Bg7 {[%clk 0:00:01]} 10. Qd2 {[%clk 0:00:01]}  O-O {[%clk 0:00:01]} 11. Bh6 {[%clk 0:00:01]}  a5 {[%clk 0:00:01]} 12. O-O {[%clk 0:00:01]}  b4 {[%clk 0:00:01]} 13. Nd1 {[%clk 0:00:00]}  Bxh6 {[%clk 0:00:01]} 14. Qxh6 {[%clk 0:00:00]}  exd4 {[%clk 0:00:01]} 15. g5 {[%clk 0:00:00]}  Nh5 {[%clk 0:00:01]} 16. f4 {[%clk 0:00:00]}  c5 {[%clk 0:00:01]} 17. f5 {[%clk 0:00:00]}  Ne5 {[%clk 0:00:01]} 18. f6 {[%clk 0:00:00]}  Nd7 {[%clk 0:00:00]} 19. Ng3 {[%clk 0:00:00]}  Nhxf6 {[%clk 0:00:00]} 20. gxf6 {[%clk 0:00:00]}  Nxf6 {[%clk 0:00:00]} 21. e5 {[%clk 0:00:00]}  Nd7 {[%clk 0:00:00]} 22. Bxb7 {[%clk 0:00:00]}  Ra7 {[%clk 0:00:00]} 23. Bg2 {[%clk 0:00:00]}  dxe5 {[%clk 0:00:00]} 24. Nf2 {[%clk 0:00:00]}  f5 {[%clk 0:00:00]} 25. Rae1 {[%clk 0:00:00]}  bxa3 {[%clk 0:00:00]} 26. bxa3 {[%clk 0:00:00]}  Qc7 {[%clk 0:00:00]} 27. Bd5+ {[%clk 0:00:00]}  Kh8 {[%clk 0:00:00]} 28. Nfe4 {[%clk 0:00:00]}  Qd8 {[%clk 0:00:00]} 29. Ng5 {[%clk 0:00:00]}  Nf6 {[%clk 0:00:00]} 30. Ne6 {[%clk 0:00:00]}  Qe7 {[%clk 0:00:00]} 31. Qxf8+ {[%clk 0:00:00]}  Qxf8 {[%clk 0:00:00]} 32. Nxf8 {[%clk 0:00:00]}  Nxd5 {[%clk 0:00:00]} 33. Rxe5 {[%clk 0:00:00]}  Ne3 {[%clk 0:00:00]} 34. Re1 {[%clk 0:00:00]}  Kg7 {[%clk 0:00:00]} 35. R1xe3 {[%clk 0:00:00]}  dxe3 {[%clk 0:00:00]} 36. Ne6+ {[%clk 0:00:00]}  Kf6 {[%clk 0:00:00]} 37. Rxe3 {[%clk 0:00:00]}  Re7 {[%clk 0:00:00]} 38. Nf4 {[%clk 0:00:00]}  Rd7 {[%clk 0:00:00]} 39. Rd3 {[%clk 0:00:00]}  Rb7 {[%clk 0:00:00]} 40. Nge2 {[%clk 0:00:00]}  Rb2 {[%clk 0:00:00]} 41. Rc3 {[%clk 0:00:00]}  Ra2 {[%clk 0:00:00]} 42. Rxc5 {[%clk 0:00:00]}  g5 {[%clk 0:00:00]} 43. Nd3 {[%clk 0:00:00]}  Rxa3 {[%clk 0:00:00]} 44. Kf2 {[%clk 0:00:00]}  a4 {[%clk 0:00:00]} 45. Nd4 {[%clk 0:00:00]}  f4 {[%clk 0:00:00]} 46. Rf5+ {[%clk 0:00:00]}  Kg6 {[%clk 0:00:00]} 47. Ne5+ {[%clk 0:00:00]}  Kg7 {[%clk 0:00:00]} 48. Ne6+ {[%clk 0:00:00]}  Kh6 {[%clk 0:00:00]} 49. Rf6+ {[%clk 0:00:00]}  Kh5 {[%clk 0:00:00]} 50. Ng7+ {[%clk 0:00:00]}  Kh4 {[%clk 0:00:00]} 51. Rh6# {[%clk 0:00:00]} 1-0


[Site "https://www.chess.com"]